[Event "Early-Titled-Tuesday-Blitz-April-02-2024"]
[Site "Chess.com"]
[Date "2024.04.02"]
[Round "2"]
[White "IshviAggarwal"]
[Black "Balla_Tamas"]
[Result "0-1"]
[WhiteElo "2165"]
[BlackElo "2462"]
[TimeControl "180+1"]
[EndTime "8:19:07 PDT"]
[Termination "Balla_Tamas won by resignation"]

1. d4 {[%clk 0:02:51.5]} 1... d5 {[%clk 0:02:55.5]} 2. c4 {[%clk 0:02:51.6]}
2... e6 {[%clk 0:02:55.6]} 3. cxd5 {[%clk 0:02:48.7]} 3... exd5 {[%clk
0:02:55.6]} 4. Nc3 {[%clk 0:02:49.3]} 4... c6 {[%clk 0:02:56]} 5. Nf3 {[%clk
0:02:34.6]} 5... Bd6 {[%clk 0:02:54.4]} 6. Qc2 {[%clk 0:02:30.7]} 6... Ne7
{[%clk 0:02:50.8]} 7. e3 {[%clk 0:02:27.5]} 7... Bf5 {[%clk 0:02:50.5]} 8. Bd3
{[%clk 0:02:26.3]} 8... Bg6 {[%clk 0:02:45.5]} 9. Ne5 {[%clk 0:02:23.3]} 9...
Bxe5 {[%clk 0:02:45.1]} 10. dxe5 {[%clk 0:02:22.6]} 10... Nd7 {[%clk 0:02:45.4]}
11. f4 {[%clk 0:02:22.4]} 11... O-O {[%clk 0:02:40.8]} 12. f5 {[%clk 0:02:06.3]}
12... Bh5 {[%clk 0:02:33.3]} 13. h3 {[%clk 0:02:06.5]} 13... Nxe5 {[%clk
0:02:09.1]} 14. g4 {[%clk 0:02:05.9]} 14... d4 {[%clk 0:02:09.5]} 15. exd4
{[%clk 0:01:55.6]} 15... Qxd4 {[%clk 0:02:07.3]} 16. Be2 {[%clk 0:01:56.1]}
16... Nxf5 {[%clk 0:01:51.8]} 17. gxf5 {[%clk 0:01:44.4]} 17... Bxe2 {[%clk
0:01:24.9]} 18. Nxe2 {[%clk 0:01:45.3]} 18... Nd3+ {[%clk 0:01:17.7]} 19. Kd2
{[%clk 0:01:34.5]} 19... Qd5 {[%clk 0:01:12.5]} 20. Qxd3 {[%clk 0:01:13.3]}
20... Qxh1 {[%clk 0:01:11]} 21. Kc2 {[%clk 0:01:03.6]} 21... Rad8 {[%clk
0:01:10.4]} 22. Qc4 {[%clk 0:01:03.3]} 22... Qd1+ {[%clk 0:01:06.2]} 23. Kb1
{[%clk 0:00:55.6]} 23... Rfe8 {[%clk 0:01:02.6]} 24. Nc3 {[%clk 0:00:54.6]}
24... Qf3 {[%clk 0:00:46.9]} 25. a3 {[%clk 0:00:30.4]} 25... a5 {[%clk
0:00:45.7]} 26. Ka2 {[%clk 0:00:28.1]} 26... b5 {[%clk 0:00:46]} 27. Qg4 {[%clk
0:00:27.5]} 27... Qxg4 {[%clk 0:00:32.3]} 28. hxg4 {[%clk 0:00:28.4]} 28... b4
{[%clk 0:00:32.9]} 29. axb4 {[%clk 0:00:17.8]} 29... axb4 {[%clk 0:00:33.8]} 30.
Na4 {[%clk 0:00:17.8]} 30... Rd3 {[%clk 0:00:24.9]} 31. b3 {[%clk 0:00:16.7]}
31... Re2+ {[%clk 0:00:23.5]} 32. Bb2 {[%clk 0:00:17.3]} 32... h6 {[%clk
0:00:21.6]} 33. Rc1 {[%clk 0:00:17.4]} 33... Rg3 {[%clk 0:00:18.6]} 34. Rxc6
{[%clk 0:00:12.3]} 34... Rxg4 {[%clk 0:00:19.1]} 35. f6 {[%clk 0:00:12.2]} 35...
gxf6 {[%clk 0:00:14.9]} 36. Rxf6 {[%clk 0:00:13.1]} 36... h5 {[%clk 0:00:14.1]}
37. Rh6 {[%clk 0:00:13]} 37... f5 {[%clk 0:00:05.1]} 38. Rxh5 {[%clk 0:00:11.5]}
38... f4 {[%clk 0:00:05.7]} 39. Rf5 {[%clk 0:00:06.1]} 39... Rf2 {[%clk
0:00:05.9]} 40. Kb1 {[%clk 0:00:05.8]} 40... Rg1+ {[%clk 0:00:05.5]} 41. Ka2
{[%clk 0:00:04.7]} 41... f3 {[%clk 0:00:06.2]} 42. Nc5 {[%clk 0:00:04.4]} 42...
Rgg2 {[%clk 0:00:05.9]} 43. Nd3 {[%clk 0:00:04.3]} 43... Rf1 {[%clk 0:00:04.2]}
44. Nf4 {[%clk 0:00:02]} 44... Rc2 {[%clk 0:00:03.2]} 45. Ne6 {[%clk 0:00:01.6]}
45... Rff2 {[%clk 0:00:03.3]} 46. Rf8+ {[%clk 0:00:02]} 46... Kh7 {[%clk
0:00:03.5]} 47. Rh8+ {[%clk 0:00:02.6]} 47... Kg6 {[%clk 0:00:04.2]} 48. Nf4+
{[%clk 0:00:02.6]} 48... Kf5 {[%clk 0:00:04.8]} 49. Nd3 {[%clk 0:00:03.1]} 49...
Rfd2 {[%clk 0:00:05.1]} 50. Rf8+ {[%clk 0:00:03.5]} 50... Ke4 {[%clk 0:00:05.5]}
51. Nxb4 {[%clk 0:00:02.4]} 51... Rxb2+ {[%clk 0:00:05.4]} 52. Ka3 {[%clk
0:00:03.2]} 52... f2 {[%clk 0:00:06]} 53. Na6 {[%clk 0:00:02]} 53... Ra2+ {[%clk
0:00:06]} 54. Kb4 {[%clk 0:00:02.2]} 54... Rxa6 {[%clk 0:00:06.9]} 55. Kb5
{[%clk 0:00:02.3]} 55... Rad6 {[%clk 0:00:06.7]} 56. b4 {[%clk 0:00:02.6]} 56...
Ke3 {[%clk 0:00:07.1]} 57. Kc5 {[%clk 0:00:02.9]} 57... Ke2 {[%clk 0:00:07.4]}
58. b5 {[%clk 0:00:02.4]} 58... f1=Q {[%clk 0:00:07.5]} 59. Rxf1 {[%clk
0:00:03]} 59... Kxf1 {[%clk 0:00:08.4]} 60. b6 {[%clk 0:00:03.3]} 60... Rxb6
{[%clk 0:00:08.6]} 61. Kxb6 {[%clk 0:00:03.9]} 61... Ke2 {[%clk 0:00:09.5]} 0-1

[Event "Early-Titled-Tuesday-Blitz-April-02-2024"]
[Site "Chess.com"]
[Date "2024.04.02"]
[Round "2"]
[White "Heliosis11"]
[Black "The_Sherman_Variation"]
[Result "1-0"]
[WhiteElo "2373"]
[BlackElo "2591"]
[TimeControl "180+1"]
[EndTime "8:19:18 PDT"]
[Termination "Heliosis11 won by checkmate"]

1. e4 {[%clk 0:03:00.9]} 1... a6 {[%clk 0:03:00.9]} 2. d4 {[%clk 0:02:59.8]}
2... c5 {[%clk 0:03:00.2]} 3. c3 {[%clk 0:02:55.2]} 3... b5 {[%clk 0:02:59.4]}
4. Nf3 {[%clk 0:02:55.2]} 4... Bb7 {[%clk 0:02:59.1]} 5. Bd3 {[%clk 0:02:54.2]}
5... e6 {[%clk 0:02:56.7]} 6. O-O {[%clk 0:02:53.7]} 6... Nf6 {[%clk 0:02:56.6]}
7. Qe2 {[%clk 0:02:52.8]} 7... Be7 {[%clk 0:02:56.6]} 8. Bg5 {[%clk 0:02:47.4]}
8... h6 {[%clk 0:02:55.8]} 9. Bh4 {[%clk 0:02:40.9]} 9... d5 {[%clk 0:02:53.8]}
10. e5 {[%clk 0:02:37.9]} 10... Nfd7 {[%clk 0:02:42.3]} 11. Bxe7 {[%clk
0:02:36.8]} 11... Qxe7 {[%clk 0:02:43.2]} 12. Nbd2 {[%clk 0:02:37]} 12... Nc6
{[%clk 0:02:42.6]} 13. a3 {[%clk 0:02:29.1]} 13... O-O {[%clk 0:02:39.8]} 14. b4
{[%clk 0:02:26.5]} 14... cxd4 {[%clk 0:02:39.4]} 15. cxd4 {[%clk 0:02:21]} 15...
f5 {[%clk 0:02:36.3]} 16. Nb3 {[%clk 0:02:18.9]} 16... g5 {[%clk 0:02:30.3]} 17.
Nfd2 {[%clk 0:02:12.7]} 17... Rf7 {[%clk 0:02:25.4]} 18. f4 {[%clk 0:02:10.3]}
18... Rg7 {[%clk 0:02:22.4]} 19. Qe3 {[%clk 0:02:06.5]} 19... Rf8 {[%clk
0:02:15.9]} 20. Rac1 {[%clk 0:01:58.6]} 20... Nb6 {[%clk 0:02:01.3]} 21. Nc5
{[%clk 0:01:57.8]} 21... Nc4 {[%clk 0:02:01.1]} 22. Nxc4 {[%clk 0:01:50.6]}
22... bxc4 {[%clk 0:01:57.3]} 23. Be2 {[%clk 0:01:51]} 23... Bc8 {[%clk
0:01:54.2]} 24. Rb1 {[%clk 0:01:35.9]} 24... Kh8 {[%clk 0:01:50.6]} 25. a4
{[%clk 0:01:29.4]} 25... Rfg8 {[%clk 0:01:49.2]} 26. g3 {[%clk 0:01:29.1]} 26...
Rh7 {[%clk 0:01:31.1]} 27. b5 {[%clk 0:01:26.6]} 27... axb5 {[%clk 0:01:28.2]}
28. axb5 {[%clk 0:01:27.5]} 28... Na5 {[%clk 0:01:28.3]} 29. b6 {[%clk
0:01:20.1]} 29... Bb7 {[%clk 0:01:23.2]} 30. Ra1 {[%clk 0:01:19.1]} 30... Nc6
{[%clk 0:01:20.5]} 31. Bd1 {[%clk 0:01:06.9]} 31... h5 {[%clk 0:01:18.6]} 32.
Ba4 {[%clk 0:01:06.6]} 32... h4 {[%clk 0:01:07.4]} 33. Bxc6 {[%clk 0:01:05.6]}
33... Bxc6 {[%clk 0:01:06.7]} 34. Ra7 {[%clk 0:01:05.2]} 34... gxf4 {[%clk
0:00:59]} 35. Rxf4 {[%clk 0:00:50]} 35... hxg3 {[%clk 0:00:58.2]} 36. hxg3
{[%clk 0:00:50.9]} 36... Qg5 {[%clk 0:00:41]} 37. Rxh7+ {[%clk 0:00:47.6]} 37...
Kxh7 {[%clk 0:00:41.9]} 38. Kf2 {[%clk 0:00:46.7]} 38... Qg6 {[%clk 0:00:34.8]}
39. Rh4+ {[%clk 0:00:39.2]} 39... Kg7 {[%clk 0:00:35]} 40. Qa3 {[%clk
0:00:29.8]} 40... Ra8 {[%clk 0:00:30]} 41. Qb2 {[%clk 0:00:24.7]} 41... c3
{[%clk 0:00:22.1]} 42. Qxc3 {[%clk 0:00:23.6]} 42... Ra2+ {[%clk 0:00:22.8]} 43.
Kf3 {[%clk 0:00:20.4]} 43... Qf7 {[%clk 0:00:16.3]} 44. Qb3 {[%clk 0:00:19.4]}
44... Ra1 {[%clk 0:00:14.6]} 45. b7 {[%clk 0:00:19.5]} 45... Bxb7 {[%clk
0:00:14.1]} 46. Qxb7 {[%clk 0:00:19.3]} 46... Ra3+ {[%clk 0:00:14.7]} 47. Kg2
{[%clk 0:00:19.3]} 47... Qxb7 {[%clk 0:00:14.6]} 48. Nxb7 {[%clk 0:00:19.9]}
48... Kg6 {[%clk 0:00:14.8]} 49. Nc5 {[%clk 0:00:20.1]} 49... Kf7 {[%clk
0:00:14.1]} 50. Rh7+ {[%clk 0:00:20]} 50... Kg6 {[%clk 0:00:14.8]} 51. Re7
{[%clk 0:00:20.6]} 51... Ra2+ {[%clk 0:00:15.4]} 52. Kh3 {[%clk 0:00:20.2]}
52... Ra3 {[%clk 0:00:15.8]} 53. Rxe6+ {[%clk 0:00:20]} 53... Kf7 {[%clk
0:00:14.7]} 54. Rf6+ {[%clk 0:00:20.4]} 54... Ke7 {[%clk 0:00:14.8]} 55. Rxf5
{[%clk 0:00:21]} 55... Rc3 {[%clk 0:00:14.3]} 56. Rf6 {[%clk 0:00:20]} 56... Rc4
{[%clk 0:00:13.9]} 57. Re6+ {[%clk 0:00:18]} 57... Kf7 {[%clk 0:00:13.6]} 58.
Rf6+ {[%clk 0:00:18.4]} 58... Ke7 {[%clk 0:00:13.7]} 59. Rf4 {[%clk 0:00:19]}
59... Rc1 {[%clk 0:00:13.7]} 60. e6 {[%clk 0:00:19.4]} 60... Rh1+ {[%clk
0:00:13.5]} 61. Kg2 {[%clk 0:00:18.8]} 61... Rh8 {[%clk 0:00:14.1]} 62. Rf7+
{[%clk 0:00:18.7]} 62... Kd6 {[%clk 0:00:14.6]} 63. Kf3 {[%clk 0:00:18.6]} 63...
Rh1 {[%clk 0:00:14.2]} 64. Kg4 {[%clk 0:00:17.5]} 64... Re1 {[%clk 0:00:14.1]}
65. Kg5 {[%clk 0:00:16.1]} 65... Rg1 {[%clk 0:00:13.5]} 66. g4 {[%clk
0:00:16.3]} 66... Rd1 {[%clk 0:00:14]} 67. Kf6 {[%clk 0:00:15.5]} 67... Rf1+
{[%clk 0:00:13.8]} 68. Kg6 {[%clk 0:00:15.5]} 68... Rd1 {[%clk 0:00:13.7]} 69.
e7 {[%clk 0:00:14.5]} 69... Re1 {[%clk 0:00:13.6]} 70. Kf6 {[%clk 0:00:14.8]}
70... Rf1+ {[%clk 0:00:12.7]} 71. Kg7 {[%clk 0:00:15.4]} 71... Re1 {[%clk
0:00:13.6]} 72. Kf8 {[%clk 0:00:15.2]} 72... Rh1 {[%clk 0:00:08.5]} 73. Rf6+
{[%clk 0:00:13.9]} 73... Kc7 {[%clk 0:00:08.2]} 74. e8=Q {[%clk 0:00:11.4]}
74... Rh8+ {[%clk 0:00:06.9]} 75. Ke7 {[%clk 0:00:11.9]} 75... Rh7+ {[%clk
0:00:07.2]} 76. Rf7 {[%clk 0:00:09.5]} 76... Rh6 {[%clk 0:00:03]} 77. Kf8+
{[%clk 0:00:09]} 77... Kb6 {[%clk 0:00:03]} 78. Qb8+ {[%clk 0:00:08.8]} 78...
Ka5 {[%clk 0:00:03.7]} 79. Ra7+ {[%clk 0:00:09.2]} 79... Ra6 {[%clk 0:00:03.7]}
80. Rxa6# {[%clk 0:00:09.9]} 1-0

[Event "Early-Titled-Tuesday-Blitz-April-02-2024"]
[Site "Chess.com"]
[Date "2024.04.02"]
[Round "2"]
[White "BVB009"]
[Black "SahibSinghKnight"]
[Result "1-0"]
[WhiteElo "2855"]
[BlackElo "2593"]
[TimeControl "180+1"]
[EndTime "8:19:25 PDT"]
[Termination "BVB009 won by resignation"]

1. Nf3 {[%clk 0:03:00.9]} 1... d5 {[%clk 0:02:59.5]} 2. e3 {[%clk 0:02:58.6]}
2... Nf6 {[%clk 0:02:57]} 3. c4 {[%clk 0:02:58.8]} 3... e6 {[%clk 0:02:55]} 4.
Nc3 {[%clk 0:02:58.9]} 4... b6 {[%clk 0:02:50.1]} 5. cxd5 {[%clk 0:02:56.2]}
5... exd5 {[%clk 0:02:49.5]} 6. g3 {[%clk 0:02:56.9]} 6... Nbd7 {[%clk
0:02:46.7]} 7. Bg2 {[%clk 0:02:52.7]} 7... Ba6 {[%clk 0:02:46.3]} 8. Qa4 {[%clk
0:02:47.2]} 8... Qc8 {[%clk 0:02:04.6]} 9. Ne5 {[%clk 0:02:34.4]} 9... Bb7
{[%clk 0:02:01.6]} 10. b4 {[%clk 0:02:10.6]} 10... Bd6 {[%clk 0:01:57.5]} 11.
Nc6 {[%clk 0:01:56.3]} 11... O-O {[%clk 0:01:30.9]} 12. Nxd5 {[%clk 0:01:50.6]}
12... Nxd5 {[%clk 0:01:30.2]} 13. Bxd5 {[%clk 0:01:51.5]} 13... Ne5 {[%clk
0:01:18.4]} 14. O-O {[%clk 0:01:46]} 14... b5 {[%clk 0:01:13.3]} 15. Qc2 {[%clk
0:01:29.7]} 15... Nxc6 {[%clk 0:01:11.6]} 16. Bxc6 {[%clk 0:01:30.6]} 16... Bxb4
{[%clk 0:01:11]} 17. Rb1 {[%clk 0:01:27.4]} 17... Bd6 {[%clk 0:00:59.2]} 18.
Rxb5 {[%clk 0:01:02.2]} 18... Ba6 {[%clk 0:00:58.9]} 19. a4 {[%clk 0:00:47.4]}
19... Bxb5 {[%clk 0:00:57.4]} 20. axb5 {[%clk 0:00:48.3]} 20... Rb8 {[%clk
0:00:55.8]} 21. Bb2 {[%clk 0:00:48.7]} 21... a6 {[%clk 0:00:33.1]} 22. Qc3
{[%clk 0:00:43.7]} 22... f6 {[%clk 0:00:33.2]} 23. Qc4+ {[%clk 0:00:33]} 23...
Kh8 {[%clk 0:00:32.6]} 24. Bc3 {[%clk 0:00:27.3]} 24... axb5 {[%clk 0:00:32.4]}
25. Bxb5 {[%clk 0:00:28.2]} 25... Qf5 {[%clk 0:00:30]} 26. Bc6 {[%clk
0:00:27.6]} 26... Qc5 {[%clk 0:00:29.8]} 27. Qxc5 {[%clk 0:00:25]} 27... Bxc5
{[%clk 0:00:29.6]} 28. Rc1 {[%clk 0:00:24.6]} 28... Ba3 {[%clk 0:00:27.8]} 29.
Rc2 {[%clk 0:00:23.7]} 29... Bb4 {[%clk 0:00:27.1]} 30. Bd4 {[%clk 0:00:22.1]}
30... Bd6 {[%clk 0:00:25.9]} 31. Kg2 {[%clk 0:00:21.7]} 31... Rfd8 {[%clk
0:00:24.8]} 32. h4 {[%clk 0:00:20.9]} 32... Kg8 {[%clk 0:00:24.5]} 33. h5 {[%clk
0:00:20.8]} 33... Kf7 {[%clk 0:00:24.8]} 34. Bf3 {[%clk 0:00:12.6]} 34... Ke7
{[%clk 0:00:24.5]} 35. Rc1 {[%clk 0:00:11.5]} 35... c5 {[%clk 0:00:24.7]} 36.
Bc3 {[%clk 0:00:07.3]} 36... Rb5 {[%clk 0:00:23.6]} 37. h6 {[%clk 0:00:06.9]}
37... g5 {[%clk 0:00:22.7]} 38. Ra1 {[%clk 0:00:07.4]} 38... Bb8 {[%clk
0:00:21.1]} 39. Ra6 {[%clk 0:00:06.9]} 39... Rd6 {[%clk 0:00:21.7]} 40. Ra8
{[%clk 0:00:06.5]} 40... f5 {[%clk 0:00:20.7]} 41. Be2 {[%clk 0:00:04.3]} 41...
Rbb6 {[%clk 0:00:20.2]} 42. Be5 {[%clk 0:00:05]} 42... Rd8 {[%clk 0:00:20.3]}
43. Bc3 {[%clk 0:00:05.3]} 43... f4 {[%clk 0:00:20]} 44. exf4 {[%clk 0:00:04.5]}
44... gxf4 {[%clk 0:00:20.9]} 45. g4 {[%clk 0:00:05]} 45... Rxh6 {[%clk
0:00:20.2]} 46. g5 {[%clk 0:00:04.2]} 46... Rg6 {[%clk 0:00:20.7]} 47. Bf6+
{[%clk 0:00:05]} 47... Rxf6 {[%clk 0:00:21.2]} 48. gxf6+ {[%clk 0:00:05.9]}
48... Kxf6 {[%clk 0:00:22.1]} 49. Bf3 {[%clk 0:00:06.5]} 49... Bc7 {[%clk
0:00:21.4]} 50. Ra6+ {[%clk 0:00:07]} 50... Ke7 {[%clk 0:00:20]} 51. Rc6 {[%clk
0:00:07.4]} 51... Bd6 {[%clk 0:00:19.4]} 52. Be4 {[%clk 0:00:07.8]} 52... Rg8+
{[%clk 0:00:19.6]} 53. Kf3 {[%clk 0:00:08.2]} 53... h5 {[%clk 0:00:19.9]} 54.
Ra6 {[%clk 0:00:08.5]} 54... Rg7 {[%clk 0:00:18.9]} 55. Ra7+ {[%clk 0:00:08.6]}
55... Kf6 {[%clk 0:00:19.5]} 56. Ra6 {[%clk 0:00:09.2]} 56... Ke5 {[%clk
0:00:19.9]} 57. Ra8 {[%clk 0:00:08.8]} 57... h4 {[%clk 0:00:15.6]} 58. Re8+
{[%clk 0:00:09.4]} 58... Be7 {[%clk 0:00:16]} 59. Rh8 {[%clk 0:00:08.4]} 59...
Bf6 {[%clk 0:00:14.2]} 60. Rh5+ {[%clk 0:00:07.9]} 60... Bg5 {[%clk 0:00:12.3]}
61. d3 {[%clk 0:00:07.6]} 61... Kf6 {[%clk 0:00:12.1]} 62. Rh8 {[%clk 0:00:07]}
62... Ke7 {[%clk 0:00:11.8]} 63. Kg4 {[%clk 0:00:05.3]} 63... Kf6 {[%clk
0:00:09.9]} 64. Rf8+ {[%clk 0:00:04.9]} 64... Ke7 {[%clk 0:00:10.1]} 65. Rf5
{[%clk 0:00:05.5]} 65... Bf6+ {[%clk 0:00:10.6]} 66. Kxf4 {[%clk 0:00:05.8]}
66... h3 {[%clk 0:00:11.2]} 67. Rh5 {[%clk 0:00:06]} 67... Rg2 {[%clk
0:00:10.3]} 68. Ke3 {[%clk 0:00:02.9]} 68... Bd4+ {[%clk 0:00:10]} 69. Ke2
{[%clk 0:00:03.4]} 69... Rxf2+ {[%clk 0:00:10.8]} 70. Ke1 {[%clk 0:00:04.1]}
70... h2 {[%clk 0:00:11.2]} 71. Rh3 {[%clk 0:00:03.6]} 71... Ra2 {[%clk
0:00:10.7]} 72. Bd5 {[%clk 0:00:03.7]} 72... Kd6 {[%clk 0:00:10.6]} 73. Bxa2
{[%clk 0:00:03.7]} 73... Bg1 {[%clk 0:00:10]} 74. Kf1 {[%clk 0:00:04.2]} 74...
Ke5 {[%clk 0:00:10.7]} 75. Bc4 {[%clk 0:00:04]} 75... Kd4 {[%clk 0:00:11.6]} 76.
Kg2 {[%clk 0:00:04.6]} 76... Kc3 {[%clk 0:00:12.1]} 77. Rxh2 {[%clk 0:00:05.1]}
77... Kd4 {[%clk 0:00:13]} 78. Kxg1 {[%clk 0:00:04.9]} 1-0

[Event "Early-Titled-Tuesday-Blitz-April-02-2024"]
[Site "Chess.com"]
[Date "2024.04.02"]
[Round "2"]
[White "sorch29"]
[Black "Yan_Dyomin2010"]
[Result "1-0"]
[WhiteElo "2435"]
[BlackElo "2684"]
[TimeControl "180+1"]
[EndTime "8:19:37 PDT"]
[Termination "sorch29 won by resignation"]

1. c4 {[%clk 0:02:56.4]} 1... g6 {[%clk 0:02:56.2]} 2. g3 {[%clk 0:02:56.7]}
2... Bg7 {[%clk 0:02:55.1]} 3. Bg2 {[%clk 0:02:53.6]} 3... c5 {[%clk 0:02:55.1]}
4. Nc3 {[%clk 0:02:48.5]} 4... Nc6 {[%clk 0:02:54.8]} 5. e3 {[%clk 0:02:49.1]}
5... d6 {[%clk 0:02:47.4]} 6. Nge2 {[%clk 0:02:48.9]} 6... Nf6 {[%clk 0:02:46]}
7. O-O {[%clk 0:02:48.3]} 7... O-O {[%clk 0:02:44.7]} 8. d4 {[%clk 0:02:44.6]}
8... e5 {[%clk 0:02:28.9]} 9. dxc5 {[%clk 0:02:07.2]} 9... dxc5 {[%clk
0:02:27.2]} 10. Nd5 {[%clk 0:01:52]} 10... Be6 {[%clk 0:02:22.3]} 11. Nec3
{[%clk 0:01:51.5]} 11... h5 {[%clk 0:02:13.6]} 12. b3 {[%clk 0:01:32.2]} 12...
Qd7 {[%clk 0:01:27.7]} 13. Nxf6+ {[%clk 0:01:26.6]} 13... Bxf6 {[%clk
0:01:28.6]} 14. Qxd7 {[%clk 0:01:26.6]} 14... Bxd7 {[%clk 0:01:29.4]} 15. Nd5
{[%clk 0:01:24.4]} 15... Bg7 {[%clk 0:01:28.4]} 16. Bb2 {[%clk 0:01:24.9]} 16...
Rad8 {[%clk 0:01:25.3]} 17. Rfd1 {[%clk 0:01:14.3]} 17... f5 {[%clk 0:01:23.6]}
18. h4 {[%clk 0:00:59.2]} 18... e4 {[%clk 0:01:21.5]} 19. Bxg7 {[%clk
0:00:57.9]} 19... Kxg7 {[%clk 0:01:22.4]} 20. Bf1 {[%clk 0:00:54.8]} 20... Ne5
{[%clk 0:01:21.6]} 21. Be2 {[%clk 0:00:54.7]} 21... Be6 {[%clk 0:01:18.6]} 22.
Nf4 {[%clk 0:00:54.3]} 22... Kf6 {[%clk 0:01:17.9]} 23. Kf1 {[%clk 0:00:48.9]}
23... Bf7 {[%clk 0:01:17.3]} 24. Ke1 {[%clk 0:00:48.8]} 24... Ke7 {[%clk
0:01:09.1]} 25. Rxd8 {[%clk 0:00:44]} 25... Rxd8 {[%clk 0:01:09]} 26. Rd1 {[%clk
0:00:44.4]} 26... Rxd1+ {[%clk 0:01:08.1]} 27. Kxd1 {[%clk 0:00:45.3]} 27... Kd6
{[%clk 0:01:09]} 28. Kd2 {[%clk 0:00:45.5]} 28... Kc6 {[%clk 0:01:01.9]} 29. Kc3
{[%clk 0:00:45.8]} 29... a6 {[%clk 0:01:01.2]} 30. Ng2 {[%clk 0:00:25.9]} 30...
b5 {[%clk 0:00:58.4]} 31. cxb5+ {[%clk 0:00:21.8]} 31... axb5 {[%clk 0:00:57.8]}
32. Ne1 {[%clk 0:00:18.4]} 32... b4+ {[%clk 0:00:55.3]} 33. Kb2 {[%clk 0:00:17]}
33... Kb6 {[%clk 0:00:43.8]} 34. a3 {[%clk 0:00:16.6]} 34... bxa3+ {[%clk
0:00:43.2]} 35. Kxa3 {[%clk 0:00:16.9]} 35... Be8 {[%clk 0:00:41.1]} 36. Ng2
{[%clk 0:00:05.5]} 36... Bf7 {[%clk 0:00:29.4]} 37. Nf4 {[%clk 0:00:05]} 37...
Ka5 {[%clk 0:00:28.1]} 38. Ng2 {[%clk 0:00:03.1]} 38... Nd3 {[%clk 0:00:26.4]}
39. Bxd3 {[%clk 0:00:02.8]} 39... exd3 {[%clk 0:00:26]} 40. Kb2 {[%clk
0:00:03.3]} 40... Kb4 {[%clk 0:00:26.3]} 41. Nf4 {[%clk 0:00:03.5]} 41... d2
{[%clk 0:00:25.5]} 42. Kc2 {[%clk 0:00:03.9]} 42... d1=Q+ {[%clk 0:00:23.4]} 43.
Kxd1 {[%clk 0:00:04.2]} 43... Kxb3 {[%clk 0:00:23.3]} 44. Kd2 {[%clk 0:00:03.5]}
44... Kb2 {[%clk 0:00:21]} 45. Nd3+ {[%clk 0:00:03.6]} 45... Kb3 {[%clk
0:00:20.4]} 46. Nxc5+ {[%clk 0:00:04.5]} 46... Kc4 {[%clk 0:00:21.3]} 47. Nd3
{[%clk 0:00:04.8]} 47... Kd5 {[%clk 0:00:21.3]} 48. Ke2 {[%clk 0:00:03.9]} 48...
Ke4 {[%clk 0:00:19.8]} 49. f3+ {[%clk 0:00:04]} 49... Kd5 {[%clk 0:00:20.4]} 50.
Kd2 {[%clk 0:00:04.3]} 50... Be8 {[%clk 0:00:19.7]} 51. Kc3 {[%clk 0:00:04.4]}
51... Ke6 {[%clk 0:00:18.4]} 52. Nf4+ {[%clk 0:00:04.6]} 52... Kf6 {[%clk
0:00:17.9]} 53. Kd4 {[%clk 0:00:03]} 53... Ba4 {[%clk 0:00:18.2]} 54. e4 {[%clk
0:00:03.1]} 54... fxe4 {[%clk 0:00:18.1]} 55. fxe4 {[%clk 0:00:04]} 55... Bd7
{[%clk 0:00:17.4]} 56. Nd5+ {[%clk 0:00:03.8]} 56... Kf7 {[%clk 0:00:17.1]} 57.
Nf4 {[%clk 0:00:04.7]} 57... Bg4 {[%clk 0:00:17.3]} 58. Ke5 {[%clk 0:00:04.3]}
58... Bd1 {[%clk 0:00:16.5]} 59. Nd5 {[%clk 0:00:04.8]} 59... Bc2 {[%clk
0:00:16.1]} 60. Kf4 {[%clk 0:00:05]} 60... Bd1 {[%clk 0:00:15.8]} 61. e5 {[%clk
0:00:05.3]} 61... Bg4 {[%clk 0:00:15.7]} 62. Nf6 {[%clk 0:00:05.5]} 62... Bf5
{[%clk 0:00:15.8]} 63. Ne4 {[%clk 0:00:06.4]} 63... Ke6 {[%clk 0:00:15]} 64.
Ng5+ {[%clk 0:00:07.3]} 64... Ke7 {[%clk 0:00:12.2]} 65. Ke3 {[%clk 0:00:07.1]}
65... Bb1 {[%clk 0:00:11.7]} 66. Kd4 {[%clk 0:00:07.8]} 66... Bf5 {[%clk
0:00:12.2]} 67. Kd5 {[%clk 0:00:08]} 67... Bb1 {[%clk 0:00:12.7]} 68. e6 {[%clk
0:00:07.8]} 68... Bf5 {[%clk 0:00:12.2]} 69. Ke5 {[%clk 0:00:08.5]} 69... Bb1
{[%clk 0:00:12.8]} 70. Nf3 {[%clk 0:00:05]} 70... Bc2 {[%clk 0:00:08.7]} 71. Nd4
{[%clk 0:00:05.9]} 71... Bb1 {[%clk 0:00:08.9]} 72. Nc6+ {[%clk 0:00:06.2]}
72... Ke8 {[%clk 0:00:09.3]} 73. Kf6 {[%clk 0:00:06.7]} 73... Be4 {[%clk
0:00:09.4]} 74. Ne5 {[%clk 0:00:07]} 74... Bb1 {[%clk 0:00:08.7]} 75. Nf7 {[%clk
0:00:07.6]} 1-0